Workbook

Sheet Vickers
B2: Periodische Prüfung zur Prüfmittelüberwachung nach Vickers
AB3: r rel %
B4: Prüfmaschine | AC4: HV 5-100 | AD4: HV 0,2-<5 | AE4: <HV 0,2 | AF4: % d | AG4: HV aus %
B5: MPA-Nummer der Härtevergleichsplatte | AA5: =0.21/I7+1.5 -> 4.9 | AB5: <=250 | AC5: 6 | AD5: 12 | AE5: 18 | AF5: =IF(I6<=225,IF(L6<0.2,AE5,IF((L6>=0.2)*(L6<5),AD5,IF((L6>=5)*(L6<=125),AC5)))) -> FALSE | AG5: =IF(AF5>1,AF5%*I6,0) -> 0
B6: Zertifizierte Härte der Härtevergleichsplatte | I6: 500.00 | K6: [HV] | L6: 1.000 | AB6: >250 | AC6: 4 | AD6: 8 | AE6: 12 | AF6: =IF(I6>225,IF(L6<0.2,AE6,IF((L6>=0.2)*(L6<5),AD6,IF((L6>=5)*(L6<=125),AC6)))) -> 8 | AG6: =IF(AF6>1,AF6%*I6,0) -> 40
B7: Mittlere Eindruckdiagonale der Härtevergleichsplatte | I7: =IF(ISBLANK(L6),"",SQRT((L6*9.807)/(I6/0.189))) -> 0.0609 | K7: [mm] | AB7: r in HV
B8: zulässige Anzeigeabweichung in % | I8: =IF(ISBLANK(L6),"",IF(I7<0.14,0.21/I7+1.5,IF(I7>0.14,"3",))) -> 4.9 | K8: %
B9: zulässige Wiederholpräzision in HV | I9: =IF(ISBLANK(L6),"",IF(I6<=250,AG5,IF(I6>250,AG6,500))) -> 40 | K9: [HV]
B10: zulässige Wiederholpräzision in % | I10: =IF(ISBLANK(L6),"",IF(I6<=225,AF5,IF(I6>225,AF6,500))) -> 8.0 | K10: %
B11: Obere Toleranzgrenze | I11: =IF(ISBLANK(L6),"",((1+(I8/100))*I6)) -> 525 | K11: [HV]
B12: Untere Toleranzgrenze | I12: =IF(ISBLANK(L6),"",((1-(I8/100))*I6)) -> 475 | K12: [HV] | N12: Tel.: +49 (0)2773 9169261 www.siantec.de
B14: Härtewerte in [HV]
C15: =(C16-C19)/3*4+C19 -> 533
C16: =I11 -> 525
C17: =(C16-C19)/3*2+C19 -> 516
C18: =(C16-C19)/3*1+C19 -> 508
C19: =I6 -> 500
C20: =(C22-C19)/3*1+C19 -> 492
C21: =(C22-C19)/3*2+C19 -> 484
C22: =I12 -> 475
C23: =(C22-C19)/3*4+C19 -> 467
B26: Lfd. Nr. | C26: Prüfer | D26: Datum | E26: KW | F26: 1. Mess. | G26: 2. Mess. | H26: 3. Mess. | I26: 4. Mess. | J26: 5. Mess. | K26: Mittel-wert | L26: d | M26: b | N26: r | O26: Bemerkungen | U26: Relative Anzeigeabweichung der mittleren Diagonale | V26: Messwert Diagonale d1 in mm | W26: Messwert Diagonale d2 in mm | X26: Messwert Diagonale d3 in mm | Y26: Messwert Diagonale d4 in mm | Z26: Messwert Diagonale d5 in mm
B27: 1 | C27: Herzog | D27: 2021-02-17 | E27: =IF(ISBLANK(D27),"",TRUNC((D27-WEEKDAY(D27,2)-DATE(YEAR(D27+4-WEEKDAY(D27,2)),1,-10))/7)) -> 7 | F27: 505 | G27: 515 | H27: 510 | I27: 512 | J27: 508 | K27: =IF(ISBLANK(F27),"",AVERAGE(F27:J27)) -> 510.0 | L27: =IF(ISBLANK(F27),"",AVERAGE(V27:Z27)) -> 0.0603 | M27: =IF(ISBLANK(F27),"",((K27-$I$6)/$I$6)*100) -> 2.0 | N27: =IF(ISBLANK(G27),"",(MAX(V27:Z27)-MIN(V27:Z27))/L27*100) -> 1.0 | O27: Beispiel | Q27: =(I8+M27)/I8*100-100 -> 40.41141899 | R27: =Q27*0.6 -> 24.24685139 | U27: =IF(ISBLANK(F27),"",((L27-$I$7)/$I$7)*100) -> -0.98 | V27: =IF(ISBLANK(F27),"",IF(F27<>0,SQRT(($L$6*9.807)/(F27/0.189)))) -> 0.0606 | W27: =IF(ISBLANK(G27),"",IF(G27<>0,SQRT(($L$6*9.807)/(G27/0.189)))) -> 0.0600 | X27: =IF(ISBLANK(H27),"",IF(H27<>0,SQRT(($L$6*9.807)/(H27/0.189)))) -> 0.0603 | Y27: =IF(ISBLANK(I27),"",IF(I27<>0,SQRT(($L$6*9.807)/(I27/0.189)))) -> 0.0602 | Z27: =IF(ISBLANK(J27),"",IF(J27<>0,SQRT(($L$6*9.807)/(J27/0.189)))) -> 0.0604
B28: 2 | E28: =IF(ISBLANK(D28),"",TRUNC((D28-WEEKDAY(D28,2)-DATE(YEAR(D28+4-WEEKDAY(D28,2)),1,-10))/7)) ->  | K28: =IF(ISBLANK(F28),"",AVERAGE(F28:J28)) ->  | L28: =IF(ISBLANK(F28),"",AVERAGE(V28:Z28)) ->  | M28: =IF(ISBLANK(F28),"",((K28-$I$6)/$I$6)*100) ->  | Q28: =(I8+M28)/I8*100-100 -> 
B29: 3 | E29: =IF(ISBLANK(D29),"",TRUNC((D29-WEEKDAY(D29,2)-DATE(YEAR(D29+4-WEEKDAY(D29,2)),1,-10))/7)) ->  | K29: =IF(ISBLANK(F29),"",AVERAGE(F29:J29)) ->  | L29: =IF(ISBLANK(F29),"",AVERAGE(V29:Z29)) ->  | M29: =IF(ISBLANK(F29),"",((K29-$I$6)/$I$6)*100) ->  | Q29: =(I8+M29)/I8*100-100 ->  | R29: =Q29*0.6 -> 
B30: 4 | E30: =IF(ISBLANK(D30),"",TRUNC((D30-WEEKDAY(D30,2)-DATE(YEAR(D30+4-WEEKDAY(D30,2)),1,-10))/7)) ->  | K30: =IF(ISBLANK(F30),"",AVERAGE(F30:J30)) ->  | L30: =IF(ISBLANK(F30),"",AVERAGE(V30:Z30)) ->  | M30: =IF(ISBLANK(F30),"",((K30-$I$6)/$I$6)*100) ->  | Q30: =(I8+M30)/I8*100-100 -> 
B31: 5 | M31: =IF(ISBLANK(F31),"",((K31-$I$6)/$I$6)*100) ->  | Q31: =(I8+M31)/I8*100-100 -> 
B32: 6 | M32: =IF(ISBLANK(F32),"",((K32-$I$6)/$I$6)*100) ->  | Q32: =(I8+M32)/I8*100-100 -> 
B33: 7 | M33: =IF(ISBLANK(F33),"",((K33-$I$6)/$I$6)*100) ->  | Q33: =(I8+M33)/I8*100-100 -> 
B34: 8 | M34: =IF(ISBLANK(F34),"",((K34-$I$6)/$I$6)*100) ->  | Q34: =(I8+M34)/I8*100-100 -> 
B35: 9 | M35: =IF(ISBLANK(F35),"",((K35-$I$6)/$I$6)*100) ->  | Q35: =(I8+M35)/I8*100-100 -> 
B36: 10 | M36: =IF(ISBLANK(F36),"",((K36-$I$6)/$I$6)*100) ->  | Q36: =(I8+M36)/I8*100-100 -> 
B37: 11 | M37: =IF(ISBLANK(F37),"",((K37-$I$6)/$I$6)*100) ->  | Q37: =(I8+M37)/I8*100-100 -> 
B38: 12 | M38: =IF(ISBLANK(F38),"",((K38-$I$6)/$I$6)*100) ->  | Q38: =(I8+M38)/I8*100-100 -> 
B39: 13 | Q39: =(I8+M39)/I8*100-100 -> 
B40: 14 | Q40: =(I8+M40)/I8*100-100 -> 
B41: 15 | Q41: =(I8+M41)/I8*100-100 -> 
B42: 16 | Q42: =(I8+M42)/I8*100-100 -> 
B43: 17 | Q43: =(I8+M43)/I8*100-100 -> 
B44: 18 | Q44: =(I8+M44)/I8*100-100 -> 
B45: 19 | Q45: =(I8+M45)/I8*100-100 -> 
B46: 20 | Q46: =(I8+M46)/I8*100-100 -> 
B47: 21 | Q47: =(I8+M47)/I8*100-100 -> 
B48: 22 | Q48: =(I8+M48)/I8*100-100 -> 
B49: 23 | Q49: =(I8+M49)/I8*100-100 -> 
B50: 24 | Q50: =(I8+M50)/I8*100-100 -> 
B51: 25 | Q51: =(I8+M51)/I8*100-100 -> 
B52: 26 | Q52: =(I8+M52)/I8*100-100 -> 
B53: 27 | Q53: =(I8+M53)/I8*100-100 -> 
B54: 28 | Q54: =(I8+M54)/I8*100-100 -> 
B55: 29 | Q55: =(I8+M55)/I8*100-100 -> 
B56: 30 | Q56: =(I8+M56)/I8*100-100 -> 
B57: 31 | M57: =IF(ISBLANK(F57),"",((K57-$I$6)/$I$6)*100) ->  | Q57: =(I8+M57)/I8*100-100 -> 
B59: Erläuterungen:
B60: d | C60: = mittlere Diagonale in mm
B61: b | C61: = Abweichung der Maschine in %
B62: r | C62: = Wiederholpräzision der Härteprüfmaschine in %
